fUSD/lending_fUSD_20260430
["ID","MTS","AMOUNT","RATE_DAILY","PERIOD"]
[421346196,1777481432000,-1167.93980651,9.122e-05,2]
[421346194,1777481432000,-8024.55979093,9.122e-05,2]
[421346195,1777481432000,-2059.927,9.122e-05,2]
[421346197,1777481432000,-982.80761298,9.122e-05,2]
[421346185,1777481432000,-15654.5109,9.122e-05,2]
[421346217,1777481438000,-795.76741781,9.219e-05,2]
[421346216,1777481438000,-795.76741781,9.219e-05,2]
[421346220,1777481438000,-795.76741781,9.219e-05,2]
[421346218,1777481438000,-795.76741781,9.219e-05,2]
[421346219,1777481438000,-795.76741781,9.219e-05,2]
[421346223,1777481438000,-795.76741781,9.219e-05,2]
[421346222,1777481438000,-795.76741781,9.219e-05,2]
[421346224,1777481438000,-795.76741781,9.219e-05,2]
[421346214,1777481438000,-483.70896714,9.219e-05,2]
[421346225,1777481438000,-795.76741781,9.219e-05,2]
[421346226,1777481438000,-795.76741781,9.219e-05,2]
[421346221,1777481438000,-795.76741781,9.219e-05,2]
[421346215,1777481438000,-795.76741781,9.219e-05,2]
[421346210,1777481438000,-182.11916908,9.219e-05,2]
[421346211,1777481438000,-500.0,9.219e-05,2]
[421346212,1777481438000,-795.76741781,9.219e-05,2]
[421346209,1777481438000,-795.76741781,9.219e-05,2]
[421346206,1777481438000,-507.79456249,9.219e-05,2]
[421346208,1777481438000,-500.0,9.219e-05,2]
[421346207,1777481438000,-611.08821602,9.219e-05,2]
[421346204,1777481438000,-500.0,9.219e-05,2]
[421346205,1777481438000,-795.76741781,9.219e-05,2]
[421346227,1777481438000,-795.76741781,9.219e-05,2]
[421346203,1777481438000,-193.97303453,9.219e-05,2]
[421346201,1777481438000,-2500.0,9.122e-05,2]
[421346202,1777481438000,-484.9132662,9.122e-05,2]
[421346200,1777481438000,-7049.54393804,9.122e-05,2]
[421346213,1777481438000,-795.76741781,9.219e-05,2]
[421346228,1777481438000,-795.76741781,9.219e-05,2]
[421346296,1777481438000,-795.76741781,9.219e-05,2]
[421346233,1777481438000,-795.76741781,9.219e-05,2]
[421346303,1777481438000,-795.76741781,9.219e-05,2]
[421346299,1777481438000,-795.76741781,9.219e-05,2]
[421346305,1777481438000,-795.76741781,9.219e-05,2]
[421346301,1777481438000,-795.76741781,9.219e-05,2]
[421346294,1777481438000,-795.76741781,9.219e-05,2]
[421346230,1777481438000,-795.76741781,9.219e-05,2]
[421346281,1777481438000,-795.76741781,9.219e-05,2]
[421346291,1777481438000,-795.76741781,9.219e-05,2]
[421346276,1777481438000,-795.76741781,9.219e-05,2]
[421346289,1777481438000,-795.76741781,9.219e-05,2]
[421346286,1777481438000,-795.76741781,9.219e-05,2]
[421346284,1777481438000,-795.76741781,9.219e-05,2]
[421346260,1777481438000,-795.76741781,9.219e-05,2]
[421346262,1777481438000,-795.76741781,9.219e-05,2]
[421346279,1777481438000,-795.76741781,9.219e-05,2]
[421346272,1777481438000,-795.76741781,9.219e-05,2]
[421346255,1777481438000,-795.76741781,9.219e-05,2]
[421346244,1777481438000,-795.76741781,9.219e-05,2]
[421346246,1777481438000,-795.76741781,9.219e-05,2]
[421346250,1777481438000,-795.76741781,9.219e-05,2]
[421346236,1777481438000,-795.76741781,9.219e-05,2]
[421346239,1777481438000,-795.76741781,9.219e-05,2]
[421346248,1777481438000,-795.76741781,9.219e-05,2]
[421346252,1777481438000,-795.76741781,9.219e-05,2]
[421346265,1777481438000,-795.76741781,9.219e-05,2]
[421346267,1777481438000,-795.76741781,9.219e-05,2]
[421346270,1777481438000,-795.76741781,9.219e-05,2]
[421346258,1777481438000,-795.76741781,9.219e-05,2]
[421346241,1777481438000,-795.76741781,9.219e-05,2]
[421346386,1777481439000,-500.0,9.221e-05,2]
[421346397,1777481439000,-500.0,9.221e-05,2]
[421346402,1777481439000,-300.0,9.221e-05,2]
[421346400,1777481439000,-300.0,9.221e-05,2]
[421346389,1777481439000,-500.0,9.221e-05,2]
[421346407,1777481439000,-152.0,9.223e-05,7]
[421346391,1777481439000,-250.0,9.221e-05,2]
[421346393,1777481439000,-500.0,9.221e-05,2]
[421346420,1777481439000,-173.5483797,9.496e-05,2]
[421346411,1777481439000,-9999.99,9.223e-05,2]
[421346413,1777481439000,-5399.94,9.223e-05,2]
[421346416,1777481439000,-250.0,9.386e-05,2]
[421346418,1777481439000,-250.0,9.386e-05,2]
[421346428,1777481439000,-182.34973196,0.00010611,2]
[421346409,1777481439000,-999.99,9.223e-05,2]
[421346422,1777481439000,-150.0,0.00010033,2]
[421346404,1777481439000,-403017.0110593,9.222e-05,2]
[421346395,1777481439000,-500.0,9.221e-05,2]
[421346320,1777481439000,-500.0,9.221e-05,2]
[421346380,1777481439000,-500.0,9.221e-05,2]
[421346308,1777481439000,-795.76741781,9.219e-05,2]
[421346310,1777481439000,-180.36196158,9.221e-05,2]
[421346315,1777481439000,-500.0,9.221e-05,2]
[421346313,1777481439000,-500.0,9.221e-05,2]
[421346426,1777481439000,-1074.84233344,0.0001025,2]
[421346322,1777481439000,-562.23511219,9.221e-05,2]
[421346325,1777481439000,-500.0,9.221e-05,2]
[421346384,1777481439000,-608.64150013,9.221e-05,2]
[421346318,1777481439000,-500.0,9.221e-05,2]
[421346337,1777481439000,-500.0,9.221e-05,2]
[421346332,1777481439000,-500.0,9.221e-05,2]
[421346330,1777481439000,-312.26694805,9.221e-05,2]
[421346334,1777481439000,-500.0,9.221e-05,2]
[421346378,1777481439000,-500.0,9.221e-05,2]
[421346374,1777481439000,-500.0,9.221e-05,2]
[421346382,1777481439000,-500.0,9.221e-05,2]
[421346327,1777481439000,-500.0,9.221e-05,2]
[421346431,1777481439000,-150.0,0.00010959,2]
[421346376,1777481439000,-500.0,9.221e-05,2]
[421346433,1777481439000,-180.56308057,0.00010959,2]
[421346482,1777481439000,-500.0,0.00013699,2]
[421346493,1777481439000,-500.0,0.00013699,2]
[421346495,1777481439000,-500.0,0.00013699,2]
[421346500,1777481439000,-500.0,0.00013699,2]
[421346502,1777481439000,-500.0,0.00013699,2]
[421346484,1777481439000,-500.0,0.00013699,2]
[421346488,1777481439000,-500.0,0.00013699,2]
[421346478,1777481439000,-500.0,0.00013699,2]
[421346486,1777481439000,-500.0,0.00013699,2]
[421346491,1777481439000,-500.0,0.00013699,2]
[421346506,1777481439000,-500.0,0.00013699,2]
[421346508,1777481439000,-500.0,0.00013699,2]
[421346510,1777481439000,-500.0,0.00013699,2]
[421346512,1777481439000,-500.0,0.00013699,2]
[421346514,1777481439000,-500.0,0.00013699,2]
[421346424,1777481439000,-474.23706914,0.00010249,2]
[421346504,1777481439000,-500.0,0.00013699,2]
[421346480,1777481439000,-500.0,0.00013699,2]
[421346498,1777481439000,-500.0,0.00013699,2]
[421346466,1777481439000,-500.0,0.00013698,2]
[421346437,1777481439000,-150.99,0.00011099,2]
[421346435,1777481439000,-299.99,0.00011099,2]
[421346444,1777481439000,-250.0,0.00011275,2]
[421346475,1777481439000,-500.0,0.00013699,2]
[421346446,1777481439000,-2102.9465064,0.00012119,2]
[421346440,1777481439000,-15242.53968477,0.00011099,2]
[421346442,1777481439000,-6001.71,0.00011234,2]
[421346455,1777481439000,-250.0,0.00013,2]
[421346448,1777481439000,-162.31979731,0.00012228,2]
[421346453,1777481439000,-15242.53968477,0.00012561,2]
[421346457,1777481439000,-166.66,0.00013226,2]
[421346459,1777481439000,-166.66,0.00013504,2]
[421346468,1777481439000,-500.0,0.00013698,2]
[421346462,1777481439000,-503.345429,0.00013698,2]
[421346464,1777481439000,-620.44615203,0.00013698,2]
[421346471,1777481439000,-500.0,0.00013698,2]
[421346473,1777481439000,-500.0,0.00013699,2]
[421346451,1777481439000,-160.0,0.00012238,2]
[421346531,1777481440000,-1600.0,0.00013991,2]
[421346539,1777481440000,-166.66,0.00014339,2]
[421346537,1777481440000,-1852.42,0.00014246,2]
[421346526,1777481440000,-166.66,0.00013783,2]
[421346523,1777481440000,-452.18872932,0.00013699,2]
[421346519,1777481440000,-500.0,0.00013699,2]
[421346521,1777481440000,-500.0,0.00013699,2]
[421346522,1777481440000,-500.0,0.00013699,2]
[421346520,1777481440000,-500.0,0.00013699,2]
[421346517,1777481440000,-500.0,0.00013699,2]
[421346527,1777481440000,-200.0,0.00013947,2]
[421346524,1777481440000,-22174.66,0.000137,2]
[421346529,1777481440000,-2369.82282078,0.00013988,2]
[421346541,1777481440000,-166.66,0.00014618,2]
[421346543,1777481440000,-166.66,0.00014674,2]
[421346525,1777481440000,-22174.66,0.000137,2]
[421346565,1777481440000,-8428.85700056,0.00015726,2]
[421346557,1777481440000,-300.0,0.00015,2]
[421346559,1777481440000,-160.0,0.00015,2]
[421346552,1777481440000,-927.0,0.00014897,2]
[421346550,1777481440000,-1049.0,0.00014897,2]
[421346561,1777481440000,-166.66,0.00015158,2]
[421346554,1777481440000,-367.412,0.00014897,2]
[421346547,1777481440000,-623.0,0.00014897,2]
[421346545,1777481440000,-3532.0,0.00014897,2]
[421346535,1777481440000,-166.66,0.00014061,2]
[421346533,1777481440000,-216.64,0.00014058,2]
[421346563,1777481440000,-166.66,0.00015642,2]
[421346732,1777481441000,-4897.49151961,0.00018536,2]
[421346727,1777481441000,-15519.9968928,0.00018536,2]
[421346721,1777481441000,-1049.0,0.00017897,2]
[421346725,1777481441000,-744.5,0.0001841,2]
[421346715,1777481441000,-2000.0,0.0001782,2]
[421346719,1777481441000,-623.0,0.00017897,2]
[421346707,1777481441000,-214.0,0.00017637,2]
[421346729,1777481441000,-1958.45399568,0.00018536,2]
[421346744,1777481441000,-829.67010334,0.00018891,2]
[421346761,1777481441000,-400.0,0.00019,2]
[421346735,1777481441000,-36984.69245172,0.00018536,2]
[421346741,1777481441000,-11181.78207088,0.00018891,2]
[421346739,1777481441000,-7247.0868984,0.00018857,2]
[421346759,1777481441000,-3231.08751055,0.00018891,2]
[421346723,1777481441000,-927.0,0.00017897,2]
[421346763,1777481441000,-1600.0,0.00019237,2]
[421346767,1777481441000,-2000.0,0.000199,2]
[421346765,1777481441000,-2869.42366984,0.00019594,72]
[421346771,1777481441000,-282.0,0.0002,2]
[421346737,1777481441000,-30564.61536039,0.00018536,2]
[421346717,1777481441000,-770.909,0.00017897,2]
[421346701,1777481441000,-214.0,0.00017452,2]
[421346711,1777481441000,-2500.0,0.00017759,2]
[421346675,1777481441000,-166.66,0.00016127,2]
[421346671,1777481441000,-1600.0,0.0001574,2]
[421346678,1777481441000,-3630.0,0.00016131,2]
[421346673,1777481441000,-2536.35643704,0.00015857,24]
[421346669,1777481441000,-6813.68268421,0.00015726,2]
[421346682,1777481441000,-695.0,0.00016131,2]
[421346680,1777481441000,-872.0,0.00016131,2]
[421346684,1777481441000,-2000.0,0.000162,2]
[421346694,1777481441000,-200.0,0.00017033,2]
[421346686,1777481441000,-744.5,0.00016438,2]
[421346688,1777481441000,-166.66,0.00016611,2]
[421346697,1777481441000,-166.66,0.00017096,2]
[421346699,1777481441000,-150.0,0.00017419,2]
[421346690,1777481441000,-350.0,0.00017,2]
[421346692,1777481441000,-500.0,0.00017008,2]
[421346703,1777481441000,-1600.0,0.00017488,2]
[421346769,1777481441000,-2849.61493404,0.0002,2]
[421346705,1777481441000,-286.0,0.00017512,2]
[421346709,1777481441000,-2702.89005344,0.00017725,56]
[421346713,1777481441000,-188.97,0.0001782,2]
[421346780,1777481441000,-291.0,0.0002,2]
[421346834,1777481441000,-2499.0,0.00021,2]
[421346786,1777481441000,-351.024663,0.0002,10]
[421346832,1777481441000,-282.0,0.00021,2]
[421346826,1777481441000,-150.0,0.0002091,2]
[421346817,1777481441000,-150.0,0.0002091,2]
[421346824,1777481441000,-150.0,0.0002091,2]
[421346838,1777481441000,-291.0,0.00021,2]
[421346840,1777481441000,-296.0,0.00021,2]
[421346842,1777481441000,-447.0,0.00021,2]
[421346844,1777481441000,-546.0,0.00021,2]
[421346846,1777481441000,-335.0,0.00021,2]
[421346853,1777481441000,-150.0,0.00021374,4]
[421346851,1777481441000,-570.0,0.00021328,5]
[421346855,1777481441000,-3062.18146818,0.00021463,87]
[421346857,1777481441000,-150.0,0.0002149,4]
[421346865,1777481441000,-5000.0,0.00021918,2]
[421346861,1777481441000,-313.0,0.000217,2]
[421346863,1777481441000,-150.0,0.00021839,4]
[421346859,1777481441000,-150.0,0.00021684,4]
[421346867,1777481441000,-282.0,0.00022,2]
[421346782,1777481441000,-296.0,0.0002,2]
[421346819,1777481441000,-150.0,0.0002091,2]
[421346836,1777481441000,-450.0,0.00021,2]
[421346849,1777481441000,-157.0,0.00021,2]
[421346830,1777481441000,-1600.0,0.00020986,2]
[421346822,1777481441000,-150.0,0.0002091,2]
[421346788,1777481441000,-546.0,0.0002,2]
[421346775,1777481441000,-201.3,0.0002,7]
[421346784,1777481441000,-447.0,0.0002,2]
[421346773,1777481441000,-2499.0,0.0002,2]
[421346777,1777481441000,-212.16,0.0002,2]
[421346790,1777481441000,-335.0,0.0002,2]
[421346796,1777481441000,-744.5,0.00020381,2]
[421346798,1777481441000,-500.0,0.00020613,2]
[421346800,1777481441000,-20065.035483,0.00020614,2]
[421346792,1777481441000,-157.0,0.0002,2]
[421346802,1777481441000,-200.0,0.00020772,2]
[421346813,1777481441000,-150.0,0.0002091,2]
[421346809,1777481441000,-927.0,0.00020897,2]
[421346806,1777481441000,-705.015,0.00020897,2]
[421346811,1777481441000,-150.0,0.0002091,4]
[421346828,1777481441000,-150.0,0.0002091,2]
[421346804,1777481441000,-623.0,0.00020897,2]
[421346794,1777481441000,-2000.0,0.00020048,2]
[421346815,1777481441000,-177.31547693,0.0002091,2]
[421346893,1777481442000,-150.0,0.00022304,4]
[421346908,1777481442000,-2499.0,0.00023,2]
[421346915,1777481442000,-296.0,0.00023,2]
[421346906,1777481442000,-282.0,0.00023,2]
[421346912,1777481442000,-291.0,0.00023,2]
[421346900,1777481442000,-2139.852,0.0002274,2]
[421346904,1777481442000,-150.0,0.00022768,4]
[421346902,1777481442000,-205.231,0.0002274,2]
[421346899,1777481442000,-150.0,0.00022652,4]
[421346896,1777481442000,-150.0,0.00022458,4]
[421346880,1777481442000,-335.0,0.00022,2]
[421346890,1777481442000,-2000.0,0.00022275,2]
[421346888,1777481442000,-150.0,0.00022071,4]
[421346871,1777481442000,-291.0,0.00022,2]
[421346873,1777481442000,-296.0,0.00022,2]
[421346869,1777481442000,-2499.0,0.00022,2]
[421346886,1777481442000,-150.0,0.00022071,4]
[421346882,1777481442000,-162.0,0.00022,2]
[421346884,1777481442000,-15242.53968477,0.00022056,2]
[421346878,1777481442000,-546.0,0.00022,2]
[421346910,1777481442000,-500.0,0.00023,2]
[421346894,1777481442000,-744.5,0.00022353,2]
[421346916,1777481442000,-447.0,0.00023,2]
[421346876,1777481442000,-447.0,0.00022,2]
[421346927,1777481442000,-3929.0,0.00023205,2]
[421346919,1777481442000,-546.0,0.00023,2]
[421346977,1777481442000,-1185381.05174782,0.00023235,2]
[421346959,1777481442000,-220.297249,0.00023235,2]
[421346953,1777481442000,-220.297249,0.00023235,2]
[421346957,1777481442000,-220.297249,0.00023235,2]
[421346961,1777481442000,-91107.56954269,0.00023235,2]
[421346955,1777481442000,-220.297249,0.00023235,2]
[421346949,1777481442000,-300.0,0.00023234,2]
[421346943,1777481442000,-500.0,0.00023234,2]
[421346951,1777481442000,-712.0,0.00023235,5]
[421346974,1777481442000,-2200.0,0.00023235,2]
[421346947,1777481442000,-666.0,0.00023234,2]
[421346941,1777481442000,-500.0,0.00023234,2]
[421346929,1777481442000,-222.10612541,0.00023233,4]
[421346931,1777481442000,-150.0,0.00023233,4]
[421346945,1777481442000,-556.2,0.00023234,2]
[421346921,1777481442000,-335.0,0.00023,2]
[421346923,1777481442000,-5000.0,0.00023134,2]
[421346935,1777481442000,-150.0,0.00023233,4]
[421346932,1777481442000,-150.0,0.00023233,4]
[421346939,1777481442000,-516.28680288,0.00023233,2]
[421346937,1777481442000,-272.0690965,0.00023233,4]
[421346925,1777481442000,-943.79854621,0.00023173,2]
[421347066,1777481446000,-107.94815365,0.00023235,7]
[421347063,1777481446000,-1649.377,0.00017897,2]
[421347062,1777481446000,-1663.0,0.00014897,2]
[421347064,1777481446000,-13.623,0.00017897,2]
[421347065,1777481446000,-1663.0,0.00020897,2]
[421347068,1777481446000,-322.94797957,0.00023235,7]
[421347074,1777481446000,-3086.80842712,0.00023235,7]
[421347071,1777481446000,-348.27399815,0.00023235,7]
[421347070,1777481446000,-54.09461322,0.00023235,7]
[421347072,1777481446000,-234.63138863,0.00023235,7]
[421347073,1777481446000,-240.19157288,0.00023235,7]
[421347076,1777481446000,-522.52533801,0.00023235,2]
[421347075,1777481446000,-2993.13815483,0.00023235,2]
[421347069,1777481446000,-369.10386678,0.00023235,7]
[421347100,1777481463000,5000.0,0.00022118,120]
[421347101,1777481463000,850.7467789,0.00022118,120]
[421347099,1777481463000,5000.0,0.00020424,120]
[421347098,1777481463000,5000.0,0.00019483,120]
[421347118,1777482324000,150.0,8.186e-05,2]
[421347137,1777482632000,-1200.0,9.081e-05,2]
[421347136,1777482632000,-300.0,9.028e-05,2]
[421347134,1777482632000,-93.38033478,9.025e-05,2]
[421347140,1777482632000,-300.0,9.082e-05,2]
[421347132,1777482632000,-2500.0,9.022e-05,2]
[421347133,1777482632000,-315.24608245,9.022e-05,2]
[421347135,1777482632000,-206.61966522,9.025e-05,2]
[421347138,1777482632000,-300.0,9.081e-05,2]
[421347142,1777482632000,-300.0,9.118e-05,2]
[421347144,1777482632000,-232.028,9.12e-05,2]
[421347141,1777482632000,-300.0,9.082e-05,2]
[421347145,1777482632000,-150.0,9.12e-05,2]
[421347147,1777482632000,-477.55112124,9.121e-05,2]
[421347149,1777482632000,-500.0,9.121e-05,2]
[421347143,1777482632000,-2529.939,9.12e-05,2]
[421347146,1777482632000,-500.0,9.121e-05,2]
[421347148,1777482632000,-22.44887876,9.121e-05,2]
[421347150,1777482632000,-123.10617595,9.121e-05,2]
[421347139,1777482632000,-300.0,9.082e-05,2]
[421347154,1777482633000,-19.67486814,9.121e-05,2]
[421347153,1777482633000,-500.0,9.121e-05,2]
[421347151,1777482633000,-65.88513186,9.121e-05,2]
[421347152,1777482633000,-500.0,9.121e-05,2]
[421347180,1777482638000,-1142.35226272,9.121e-05,2]
[421347175,1777482638000,-1142.35226272,9.121e-05,2]
[421347178,1777482638000,-1142.35226272,9.121e-05,2]
[421347176,1777482638000,-1142.35226272,9.121e-05,2]
[421347179,1777482638000,-1142.35226272,9.121e-05,2]
[421347183,1777482638000,-1142.35226272,9.121e-05,2]
[421347171,1777482638000,-1142.35226272,9.121e-05,2]
[421347174,1777482638000,-1142.35226272,9.121e-05,2]
[421347172,1777482638000,-1142.35226272,9.121e-05,2]
[421347173,1777482638000,-1142.35226272,9.121e-05,2]
[421347167,1777482638000,-1142.35226272,9.121e-05,2]
[421347181,1777482638000,-1142.35226272,9.121e-05,2]
[421347166,1777482638000,-1142.35226272,9.121e-05,2]
[421347162,1777482638000,-1142.35226272,9.121e-05,2]
[421347164,1777482638000,-1142.35226272,9.121e-05,2]
[421347163,1777482638000,-1142.35226272,9.121e-05,2]
[421347165,1777482638000,-1142.35226272,9.121e-05,2]
[421347158,1777482638000,-500.0,9.121e-05,2]
[421347169,1777482638000,-1142.35226272,9.121e-05,2]
[421347160,1777482638000,-1142.35226272,9.121e-05,2]
[421347170,1777482638000,-1142.35226272,9.121e-05,2]
[421347159,1777482638000,-1142.35226272,9.121e-05,2]
[421347168,1777482638000,-1142.35226272,9.121e-05,2]
[421347156,1777482638000,-2500.0,9.022e-05,2]
[421347157,1777482638000,-480.32513186,9.121e-05,2]
[421347193,1777482638000,-1142.35226272,9.121e-05,2]
[421347161,1777482638000,-1142.35226272,9.121e-05,2]
[421347182,1777482638000,-1142.35226272,9.121e-05,2]
[421347177,1777482638000,-1142.35226272,9.121e-05,2]
[421347185,1777482638000,-1142.35226272,9.121e-05,2]
[421347184,1777482638000,-1142.35226272,9.121e-05,2]
[421347210,1777482638000,-1123.75583055,9.121e-05,2]
[421347208,1777482638000,-1123.75583055,9.121e-05,2]
[421347212,1777482638000,-1123.75583055,9.121e-05,2]
[421347213,1777482638000,-1123.75583055,9.121e-05,2]
[421347215,1777482638000,-1123.75583055,9.121e-05,2]
[421347205,1777482638000,-1123.75583055,9.121e-05,2]
[421347216,1777482638000,-1123.75583055,9.121e-05,2]
[421347204,1777482638000,-568.58686364,9.121e-05,2]
[421347203,1777482638000,-1142.35226272,9.121e-05,2]
[421347201,1777482638000,-1142.35226272,9.121e-05,2]
[421347199,1777482638000,-1080.02202833,9.121e-05,2]
[421347196,1777482638000,-1142.35226272,9.121e-05,2]
[421347207,1777482638000,-1123.75583055,9.121e-05,2]
[421347197,1777482638000,-1142.35226272,9.121e-05,2]
[421347187,1777482638000,-1142.35226272,9.121e-05,2]
[421347200,1777482638000,-62.33023439,9.121e-05,2]
[421347191,1777482638000,-1142.35226272,9.121e-05,2]
[421347188,1777482638000,-1142.35226272,9.121e-05,2]
[421347214,1777482638000,-1123.75583055,9.121e-05,2]
[421347190,1777482638000,-1142.35226272,9.121e-05,2]
[421347186,1777482638000,-1142.35226272,9.121e-05,2]
[421347189,1777482638000,-1142.35226272,9.121e-05,2]
[421347195,1777482638000,-1142.35226272,9.121e-05,2]
[421347194,1777482638000,-1142.35226272,9.121e-05,2]
[421347198,1777482638000,-1142.35226272,9.121e-05,2]
[421347202,1777482638000,-1142.35226272,9.121e-05,2]
[421347192,1777482638000,-1142.35226272,9.121e-05,2]
[421347232,1777482639000,-1123.75583055,9.121e-05,2]
[421347243,1777482639000,-500.0,9.121e-05,2]
[421347241,1777482639000,-785.95635097,9.121e-05,2]
[421347237,1777482639000,-1123.75583055,9.121e-05,2]
[421347238,1777482639000,-1123.75583055,9.121e-05,2]
[421347236,1777482639000,-1123.75583055,9.121e-05,2]
[421347240,1777482639000,-337.79947958,9.121e-05,2]
[421347242,1777482639000,-1123.75583055,9.121e-05,2]
[421347234,1777482639000,-1123.75583055,9.121e-05,2]
[421347235,1777482639000,-1123.75583055,9.121e-05,2]
[421347233,1777482639000,-1123.75583055,9.121e-05,2]
[421347231,1777482639000,-1123.75583055,9.121e-05,2]
[421347227,1777482639000,-1123.75583055,9.121e-05,2]
[421347224,1777482639000,-1123.75583055,9.121e-05,2]
[421347223,1777482639000,-1123.75583055,9.121e-05,2]
[421347226,1777482639000,-1123.75583055,9.121e-05,2]
[421347229,1777482639000,-1123.75583055,9.121e-05,2]
[421347230,1777482639000,-1123.75583055,9.121e-05,2]
[421347220,1777482639000,-1123.75583055,9.121e-05,2]
[421347221,1777482639000,-1123.75583055,9.121e-05,2]
[421347218,1777482639000,-1123.75583055,9.121e-05,2]
[421347217,1777482639000,-1123.75583055,9.121e-05,2]
[421347239,1777482639000,-1123.75583055,9.121e-05,2]
[421347228,1777482639000,-1123.75583055,9.121e-05,2]
[421347244,1777482639000,-500.0,9.121e-05,2]
[421347250,1777482639000,-500.0,9.121e-05,2]
[421347248,1777482639000,-557.70736568,9.121e-05,2]
[421347270,1777482639000,-5.87183454,9.121e-05,2]
[421347269,1777482639000,-290.39515598,9.121e-05,2]
[421347268,1777482639000,-1103.32390634,9.121e-05,2]
[421347264,1777482639000,-1103.32390634,9.121e-05,2]
[421347267,1777482639000,-155.66910314,9.121e-05,2]
[421347263,1777482639000,-1103.32390634,9.121e-05,2]
[421347266,1777482639000,-829.67010334,9.121e-05,2]
[421347246,1777482639000,-500.0,9.121e-05,2]
[421347262,1777482639000,-1103.32390634,9.121e-05,2]
[421347261,1777482639000,-1103.32390634,9.121e-05,2]
[421347257,1777482639000,-1103.32390634,9.121e-05,2]
[421347265,1777482639000,-117.98469986,9.121e-05,2]
[421347260,1777482639000,-1103.32390634,9.121e-05,2]
[421347247,1777482639000,-500.0,9.121e-05,2]
[421347259,1777482639000,-1103.32390634,9.121e-05,2]
[421347254,1777482639000,-500.0,9.121e-05,2]
[421347253,1777482639000,-584.30698196,9.121e-05,2]
[421347249,1777482639000,-500.0,9.121e-05,2]
[421347245,1777482639000,-500.0,9.121e-05,2]
[421347256,1777482639000,-1103.32390634,9.121e-05,2]
[421347251,1777482639000,-500.0,9.121e-05,2]
[421347255,1777482639000,-329.2425832,9.121e-05,2]
[421347258,1777482639000,-1103.32390634,9.121e-05,2]
[421347252,1777482639000,-500.0,9.121e-05,2]
[421347280,1777482640000,-116.42411386,9.121e-05,2]
[421347281,1777482640000,-266.72588614,9.121e-05,2]
[421347279,1777482640000,-133.57588614,9.121e-05,2]
[421347278,1777482640000,-326.09411386,9.121e-05,2]
[421347282,1777482641000,-33.26411386,9.121e-05,2]
[421347284,1777482641000,-509.01974782,9.122e-05,2]
[421347283,1777482641000,-150.99,9.121e-05,2]
[421347294,1777482644000,-725007.20373395,9.122e-05,2]
[421347296,1777482644000,-81852.37404457,9.122e-05,2]
[421347295,1777482644000,-163359.6262387,9.122e-05,2]
[421347302,1777482646000,-4083.24999999,9.122e-05,2]
[421347303,1777482646000,-759.91,9.122e-05,2]
[421347306,1777482646000,-704.43794619,9.122e-05,2]
[421347305,1777482646000,-16600.000001,9.122e-05,2]
[421347304,1777482646000,-7580.22764699,9.122e-05,2]
[421347313,1777482668000,416.47178,9.021e-05,2]
[421347314,1777482884000,500.0,0.0003013,120]
[421347322,1777483232000,-1126.43662958,8.84e-05,2]
[421347320,1777483232000,-722.51437042,8.84e-05,2]
[421347324,1777483232000,-255.0,8.84e-05,2]
[421347325,1777483232000,-250.0,8.921e-05,2]
[421347323,1777483232000,-185.622,8.84e-05,2]
[421347321,1777483232000,-175.0,8.84e-05,2]
[421347326,1777483265000,932.94137042,8.921e-05,2]
[421347328,1777483325000,514.31147075,8.84e-05,2]
[421347329,1777483364000,500.0,8.74e-05,2]
[421347330,1777483381000,1450.26152925,8.8e-05,3]
[421347331,1777483505000,150.0,8.112e-05,2]
[421347332,1777483512000,150.0,8.112e-05,2]
[421347333,1777483516000,150.0,8.112e-05,2]
[421347334,1777483522000,150.0,8.112e-05,2]
[421347336,1777483522000,150.0,8.112e-05,2]
[421347335,1777483522000,150.0,8.212e-05,2]
[421347337,1777483654000,276.92540992,0.0003013,120]
[421347339,1777483659000,4430.28,8.018e-05,2]
[421347338,1777483659000,5000.01,8.018e-05,2]
[421347341,1777483732000,200.95,4.001e-05,2]
[421347371,1777483831000,-844.73708973,8.8e-05,3]
[421347370,1777483831000,-370.50525017,8.8e-05,3]
[421347367,1777483831000,-320.12081805,8.799e-05,2]
[421347368,1777483831000,-66.98418195,8.8e-05,3]